fUST/lending_fUST_20250120
["ID","MTS","AMOUNT","RATE_DAILY","PERIOD"]
[349604696,1737324644105,-1000.0,0.00023118,2]
[349604698,1737324644127,-854.29718945,0.0002312,2]
[349604700,1737324644137,-500.0,0.0002315,3]
[349604703,1737324644147,-500.0,0.0002315,3]
[349604705,1737324644157,-500.0,0.0002315,3]
[349604707,1737324644169,-500.0,0.0002315,3]
[349604709,1737324644179,-500.0,0.0002315,3]
[349604711,1737324644189,-446.32,0.0002315,3]
[349604713,1737324644199,-500.0,0.0002315,2]
[349604715,1737324644209,-500.0,0.0002315,3]
[349604717,1737324644220,-4853.11,0.0002315,3]
[349604719,1737324644230,-1993.2,0.0002315,3]
[349604721,1737324644239,-881.91,0.0002315,3]
[349604723,1737324644249,-8689.86,0.0002315,3]
[349604725,1737324644259,-500.0,0.0002315,3]
[349604727,1737324644269,-1226.58,0.0002315,3]
[349604729,1737324644279,-3967.21,0.0002315,3]
[349604731,1737324644289,-663.29,0.0002315,3]
[349604733,1737324644299,-500.0,0.0002315,3]
[349604735,1737324644309,-1715.53,0.0002315,3]
[349604737,1737324644319,-1016.52,0.0002315,3]
[349604739,1737324644329,-500.0,0.0002315,3]
[349604741,1737324644339,-1163.17,0.0002315,3]
[349604743,1737324644348,-564.42,0.0002315,3]
[349604745,1737324644358,-5107.16,0.0002315,3]
[349604747,1737324644367,-2259.45,0.0002315,3]
[349604749,1737324644377,-1278.11,0.0002315,3]
[349604751,1737324644387,-500.0,0.0002315,3]
[349604753,1737324644397,-15061.67,0.0002315,3]
[349604755,1737324644407,-500.0,0.0002315,3]
[349604757,1737324644418,-500.0,0.0002315,3]
[349604759,1737324644428,-504.49,0.0002315,3]
[349604761,1737324644438,-500.0,0.0002315,3]
[349604763,1737324644448,-1682.3,0.0002315,3]
[349604766,1737324644458,-500.0,0.0002315,3]
[349604768,1737324644468,-500.0,0.0002315,3]
[349604770,1737324644477,-1233.72,0.0002315,3]
[349604772,1737324644487,-263.0,0.0002317,10]
[349604774,1737324644496,-151.0,0.000232,10]
[349604776,1737324644506,-649.99937336,0.00023231,2]
[349604778,1737324644515,-500.0,0.00023287,3]
[349604780,1737324644525,-500.0,0.00023287,3]
[349604782,1737324644535,-500.0,0.00023287,3]
[349604784,1737324644544,-500.0,0.00023287,3]
[349604786,1737324644553,-500.0,0.00023287,3]
[349604788,1737324644563,-500.0,0.00023287,2]
[349604790,1737324644572,-500.0,0.00023287,3]
[349604792,1737324644582,-4853.11,0.00023287,3]
[349604794,1737324644591,-1993.2,0.00023287,3]
[349604796,1737324644600,-881.91,0.00023287,3]
[349604798,1737324644610,-8689.86,0.00023287,3]
[349604800,1737324644620,-500.0,0.00023287,3]
[349604802,1737324644630,-1226.58,0.00023287,3]
[349604804,1737324644640,-3967.21,0.00023287,3]
[349604806,1737324644649,-663.29,0.00023287,3]
[349604808,1737324644658,-500.0,0.00023287,3]
[349604810,1737324644668,-1715.53,0.00023287,3]
[349604812,1737324644678,-1016.52,0.00023287,3]
[349604814,1737324644687,-500.0,0.00023287,3]
[349604816,1737324644696,-1163.17,0.00023287,3]
[349604818,1737324644706,-5107.16,0.00023287,3]
[349604820,1737324644715,-2259.45,0.00023287,3]
[349604822,1737324644724,-1278.11,0.00023287,3]
[349604824,1737324644734,-500.0,0.00023287,3]
[349604826,1737324644744,-15061.67,0.00023287,3]
[349604828,1737324644757,-500.0,0.00023287,3]
[349604830,1737324644766,-500.0,0.00023287,3]
[349604832,1737324644776,-504.49,0.00023287,3]
[349604834,1737324644787,-500.0,0.00023287,3]
[349604836,1737324644796,-1682.3,0.00023287,3]
[349604838,1737324644806,-500.0,0.00023287,3]
[349604840,1737324644815,-500.0,0.00023287,3]
[349604842,1737324644825,-1233.72,0.00023287,3]
[349604844,1737324644835,-151.0,0.000234,6]
[349604846,1737324644844,-536.0,0.00023421,2]
[349604848,1737324644853,-2063.0,0.00023421,2]
[349604850,1737324644863,-2308.0,0.00023421,2]
[349604852,1737324644872,-500.0,0.00023424,3]
[349604854,1737324644881,-500.0,0.00023424,3]
[349604856,1737324644891,-500.0,0.00023424,3]
[349604858,1737324644901,-500.0,0.00023424,3]
[349604860,1737324644910,-500.0,0.00023424,2]
[349604863,1737324644925,-500.0,0.00023424,3]
[349604865,1737324644934,-4853.11,0.00023424,3]
[349604866,1737324644943,-1993.2,0.00023424,3]
[349604868,1737324644952,-881.91,0.00023424,3]
[349604871,1737324644961,-8689.86,0.00023424,3]
[349604873,1737324644971,-500.0,0.00023424,3]
[349604875,1737324644980,-1226.58,0.00023424,3]
[349604877,1737324644990,-3967.21,0.00023424,3]
[349604879,1737324645000,-663.29,0.00023424,3]
[349604881,1737324645009,-500.0,0.00023424,3]
[349604883,1737324645018,-1715.53,0.00023424,3]
[349604885,1737324645028,-1016.52,0.00023424,3]
[349604887,1737324645037,-500.0,0.00023424,3]
[349604889,1737324645046,-1163.17,0.00023424,3]
[349604891,1737324645055,-5107.16,0.00023424,3]
[349604893,1737324645065,-2259.45,0.00023424,3]
[349604895,1737324645073,-1278.11,0.00023424,3]
[349604897,1737324645083,-500.0,0.00023424,3]
[349604899,1737324645092,-9084.36651882,0.00023424,3]
[349604912,1737324645217,-565.39,0.00022602,3]
[349604914,1737324645227,-96.97076914,0.00023424,3]
[349604916,1737324645238,-5204.5,0.00023424,3]
[349604919,1737324645254,-565.39,0.00022739,3]
[349604921,1737324645264,-675.83271204,0.00023424,3]
[349604923,1737324645273,-33.77728794,0.00023424,3]
[349604925,1737324645285,-466.22271206,0.00023424,3]
[349604927,1737324645295,-500.0,0.00023424,3]
[349604929,1737324645305,-504.49,0.00023424,3]
[349604931,1737324645315,-474.06,0.00023424,3]
[349604933,1737324645325,-1682.3,0.00023424,3]
[349604935,1737324645334,-500.0,0.00023424,3]
[349604937,1737324645344,-217.35629306,0.00023424,3]
[349604939,1737324645354,-1233.72,0.00023424,3]
[349604941,1737324645364,-854.29718945,0.00023446,2]
[349604944,1737324645374,-699.0,0.000235,2]
[349604946,1737324645385,-1500.0,0.00023522,2]
[349604948,1737324645397,-500.0,0.00023561,3]
[349604950,1737324645407,-500.0,0.00023561,3]
[349604952,1737324645422,-500.0,0.00023561,3]
[349604954,1737324645431,-500.0,0.00023561,3]
[349604956,1737324645442,-500.0,0.00023561,2]
[349604958,1737324645452,-500.0,0.00023561,3]
[349604960,1737324645461,-1103.9212091,0.00023561,3]
[349604963,1737324645478,-399.91053698,0.00022328,3]
[349605001,1737324645751,-100.08946302,0.00022328,3]
[349605003,1737324645761,-1067.64221754,0.00023561,3]
[349605005,1737324645773,-2681.54657336,0.00023561,3]
[349605007,1737324645782,-1993.2,0.00023561,3]
[349605009,1737324645792,-881.91,0.00023561,3]
[349605011,1737324645802,-8689.86,0.00023561,3]
[349605014,1737324645812,-500.0,0.00023561,3]
[349605017,1737324645822,-1226.58,0.00023561,3]
[349605021,1737324645832,-3967.21,0.00023561,3]
[349605023,1737324645843,-663.29,0.00023561,3]
[349605025,1737324645852,-500.0,0.00023561,3]
[349605027,1737324645862,-1715.53,0.00023561,3]
[349605029,1737324645871,-1016.52,0.00023561,3]
[349605031,1737324645880,-500.0,0.00023561,3]
[349605033,1737324645889,-1163.17,0.00023561,3]
[349605035,1737324645898,-5107.16,0.00023561,3]
[349605037,1737324645908,-2259.45,0.00023561,3]
[349605039,1737324645920,-1278.11,0.00023561,3]
[349605041,1737324645930,-500.0,0.00023561,3]
[349605043,1737324645939,-15061.67,0.00023561,3]
[349605045,1737324645949,-500.0,0.00023561,3]
[349605047,1737324645958,-500.0,0.00023561,3]
[349605049,1737324645967,-504.49,0.00023561,3]
[349605051,1737324645977,-1682.3,0.00023561,3]
[349605053,1737324645985,-500.0,0.00023561,3]
[349605055,1737324645995,-1233.72,0.00023561,3]
[349605057,1737324646004,-1000.0,0.00023588,2]
[349605059,1737324646013,-1000.0,0.00023588,2]
[349605061,1737324646024,-151.0,0.00023589,2]
[349605064,1737324646033,-1200.0,0.00023589,2]
[349605066,1737324646042,-500.0,0.00023589,2]
[349605068,1737324646051,-151.0,0.000236,6]
[349605070,1737324646061,-1000.0,0.00023622,2]
[349605072,1737324646070,-1346.57127439,0.00023698,3]
[349605074,1737324646079,-500.0,0.00023698,3]
[349605076,1737324646088,-500.0,0.00023698,3]
[349605078,1737324646098,-151.0,0.00023698,7]
[349605080,1737324646108,-500.0,0.00023698,3]
[349605082,1737324646117,-395.96,0.00023698,3]
[349605084,1737324646126,-151.0,0.00023698,7]
[349605086,1737324646136,-151.0,0.00023698,7]
[349605088,1737324646145,-151.0,0.00023698,7]
[349605090,1737324646155,-513.839101,0.00023698,7]
[349605092,1737324646168,-513.839101,0.00023698,7]
[349605093,1737324646179,-500.0,0.00023698,2]
[349605094,1737324646187,-500.0,0.00023698,3]
[349605095,1737324646197,-4853.11,0.00023698,3]
[349605096,1737324646206,-1993.2,0.00023698,3]
[349605097,1737324646215,-881.91,0.00023698,3]
[349605098,1737324646223,-151.0,0.00023698,7]
[349605099,1737324646233,-8689.86,0.00023698,3]
[349605100,1737324646242,-151.0,0.00023698,7]
[349605101,1737324646251,-151.0,0.00023698,7]
[349605102,1737324646260,-500.0,0.00023698,3]
[349605103,1737324646270,-1226.58,0.00023698,3]
[349605113,1737324646367,-3967.21,0.00023698,3]
[349605115,1737324646378,-663.29,0.00023698,3]
[349605117,1737324646388,-151.0,0.00023698,7]
[349605119,1737324646399,-151.0,0.00023698,7]
[349605121,1737324646409,-500.0,0.00023698,3]
[349605123,1737324646421,-1715.53,0.00023698,3]
[349605125,1737324646431,-1016.52,0.00023698,3]
[349605127,1737324646441,-500.0,0.00023698,3]
[349605129,1737324646451,-1163.17,0.00023698,3]
[349605131,1737324646460,-5107.16,0.00023698,3]
[349605133,1737324646470,-2259.45,0.00023698,3]
[349605135,1737324646480,-1278.11,0.00023698,3]
[349605137,1737324646489,-500.0,0.00023698,3]
[349605139,1737324646499,-15061.67,0.00023698,3]
[349605141,1737324646508,-151.0,0.00023698,7]
[349605143,1737324646518,-151.0,0.00023698,7]
[349605145,1737324646528,-500.0,0.00023698,3]
[349605147,1737324646538,-500.0,0.00023698,3]
[349605149,1737324646548,-151.0,0.00023698,7]
[349605151,1737324646557,-151.0,0.00023698,7]
[349605153,1737324646567,-151.0,0.00023698,7]
[349605155,1737324646576,-504.49,0.00023698,3]
[349605157,1737324646585,-151.0,0.00023698,7]
[349605159,1737324646595,-1682.3,0.00023698,3]
[349605161,1737324646604,-500.0,0.00023698,3]
[349605164,1737324646614,-151.0,0.00023698,7]
[349605165,1737324646623,-1233.72,0.00023698,3]
[349605168,1737324646632,-151.0,0.00023698,7]
[349605170,1737324646642,-505.03386063,0.00023722,2]
[349605172,1737324646651,-935.82723673,0.00023757,2]
[349605174,1737324646664,-81.09827127,0.00023757,2]
[349605176,1737324646677,-151.0,0.00023762,7]
[349605178,1737324646687,-151.0,0.00023762,7]
[349605180,1737324646696,-151.0,0.000238,10]
[349605182,1737324646706,-420.0,0.00023817,2]
[349605184,1737324646715,-151.0,0.00023835,7]
[349605186,1737324646725,-151.0,0.00023835,7]
[349605188,1737324646734,-500.0,0.00023835,3]
[349605190,1737324646744,-151.0,0.00023835,7]
[349605192,1737324646760,-500.0,0.00023835,3]
[349605194,1737324646769,-151.0,0.00023835,7]
[349605196,1737324646779,-151.0,0.00023835,7]
[349605198,1737324646789,-500.0,0.00023835,3]
[349605200,1737324646801,-151.0,0.00023835,7]
[349605202,1737324646810,-152.304073,0.00023835,7]
[349605204,1737324646819,-153.40097,0.00023835,7]
[349605206,1737324646829,-500.0,0.00023835,2]
[349605208,1737324646839,-500.0,0.00023835,3]
[349605210,1737324646849,-151.0,0.00023835,7]
[349605212,1737324646859,-151.0,0.00023835,7]
[349605214,1737324646869,-4853.11,0.00023835,3]
[349605216,1737324646878,-151.0,0.00023835,7]
[349605218,1737324646888,-1993.2,0.00023835,3]
[349605220,1737324646897,-881.91,0.00023835,3]
[349605222,1737324646907,-215.636458,0.00023835,7]
[349605224,1737324646918,-215.636458,0.00023835,7]
[349605226,1737324646928,-1310.11339563,0.00023835,3]
[349605228,1737324646940,-7379.74660437,0.00023835,3]
[349605230,1737324646949,-280.48,0.00023835,3]
[349605232,1737324646959,-1226.58,0.00023835,3]
[349605234,1737324646968,-3967.21,0.00023835,3]
[349605236,1737324646977,-663.29,0.00023835,3]
[349605238,1737324646986,-201.981859,0.00023835,7]
[349605240,1737324646996,-151.187869,0.00023835,7]
[349605242,1737324647006,-151.0,0.00023835,7]
[349605244,1737324647016,-500.0,0.00023835,3]
[349605246,1737324647026,-151.0,0.00023835,7]
[349605248,1737324647036,-1715.53,0.00023835,3]
[349605250,1737324647046,-151.0,0.00023835,7]
[349605253,1737324647056,-1016.52,0.00023835,3]
[349605255,1737324647065,-151.0,0.00023835,7]
[349605257,1737324647074,-489.16,0.00023835,3]
[349605259,1737324647083,-396.466922,0.00023835,7]
[349605260,1737324647092,-396.466922,0.00023835,7]
[349605262,1737324647102,-1163.17,0.00023835,3]
[349605265,1737324647112,-151.0,0.00023835,7]
[349605267,1737324647121,-5107.16,0.00023835,3]
[349605269,1737324647131,-2259.45,0.00023835,3]
[349605271,1737324647141,-1278.11,0.00023835,3]
[349605273,1737324647150,-271.128582,0.00023835,7]
[349605275,1737324647160,-500.0,0.00023835,3]
[349605277,1737324647173,-15061.67,0.00023835,3]
[349605279,1737324647183,-500.0,0.00023835,3]
[349605281,1737324647192,-500.0,0.00023835,3]
[349605283,1737324647202,-504.49,0.00023835,3]
[349605285,1737324647213,-1682.3,0.00023835,3]
[349605287,1737324647223,-500.0,0.00023835,3]
[349605289,1737324647233,-1233.72,0.00023835,3]
[349605291,1737324647243,-1971.22974684,0.00023855,2]
[349605293,1737324647255,-1540.56194182,0.00023922,2]
[349605295,1737324647265,-16666.58323429,0.00023931,2]
[349605313,1737324647365,-166.0,0.00022,2]
[349605317,1737324647375,-500.0,0.00022465,3]
[349605321,1737324647384,-500.0,0.00022602,3]
[349605325,1737324647394,-500.0,0.00022739,3]
[349605329,1737324647403,-565.39,0.00022876,3]
[349605333,1737324647412,-500.0,0.00022876,3]
[349605337,1737324647426,-565.39,0.00023013,3]
[349605340,1737324647436,-500.0,0.00023013,3]
[349605343,1737324647445,-166.0,0.00023014,2]
[349605345,1737324647454,-565.39,0.0002315,3]
[349605348,1737324647463,-500.0,0.0002315,3]
[349605351,1737324647472,-565.39,0.00023287,3]
[349605354,1737324647482,-549.58,0.00023287,3]
[349605357,1737324647491,-565.39,0.00023424,3]
[349605360,1737324647500,-565.39,0.00023561,3]
[349605363,1737324647509,-565.39,0.00023698,3]
[349605366,1737324647518,-854.29718945,0.00023772,2]
[349605369,1737324647528,-5896.98898196,0.00023931,2]
[349605372,1737324647537,-1000.0,0.00023936,2]
[349605374,1737324647546,-500.0,0.00023972,3]
[349605376,1737324647556,-487.56,0.00023972,3]
[349605378,1737324647565,-500.0,0.00023972,3]
[349605380,1737324647575,-500.0,0.00023972,2]
[349605382,1737324647584,-377.65,0.00023972,3]
[349605384,1737324647594,-4853.11,0.00023972,3]
[349605386,1737324647603,-1993.2,0.00023972,3]
[349605388,1737324647612,-881.91,0.00023972,3]
[349605390,1737324647621,-8689.86,0.00023972,3]
[349605392,1737324647631,-410.67206924,0.00023972,3]
[349605403,1737324647724,-500.0,0.00021917,3]
[349605405,1737324647733,-151.0,0.00023698,7]
[349605407,1737324647744,-565.39,0.00023835,3]
[349605409,1737324647754,-815.90793076,0.00023972,3]
[349605411,1737324647766,-327.70206924,0.00023972,3]
[349605413,1737324647777,-3639.50793076,0.00023972,3]
[349605415,1737324647787,-663.29,0.00023972,3]
[349605417,1737324647797,-500.0,0.00023972,3]
[349605419,1737324647807,-348.53341511,0.00023972,3]
[349605428,1737324647885,-500.0,0.00021917,2]
[349605430,1737324647894,-1157.29117755,0.000229,3]
[349605432,1737324647903,-1157.29117748,0.00022969,3]
[349605434,1737324647912,-1157.29117748,0.00023038,3]
[349605436,1737324647924,-347.862552,0.00023698,7]
[349605439,1737324647934,-1366.99658489,0.00023972,3]
[349605440,1737324647943,-1016.52,0.00023972,3]
[349605442,1737324647952,-1163.17,0.00023972,3]
[349605444,1737324647962,-5107.16,0.00023972,3]
[349605446,1737324647971,-2259.45,0.00023972,3]
[349605448,1737324647981,-1278.11,0.00023972,3]
[349605451,1737324647990,-500.0,0.00023972,3]
[349605452,1737324647999,-15061.67,0.00023972,3]
[349605454,1737324648009,-500.0,0.00023972,3]
[349605456,1737324648019,-500.0,0.00023972,3]
[349605459,1737324648029,-504.49,0.00023972,3]
[349605460,1737324648039,-1682.3,0.00023972,3]
[349605463,1737324648048,-500.0,0.00023972,3]
[349605465,1737324648058,-1233.72,0.00023972,3]
[349605467,1737324648067,-565.39,0.00023972,3]
[349605469,1737324648076,-7783.68861727,0.00023974,2]
[349605471,1737324648086,-5000.0,0.00023974,2]
[349605473,1737324648095,-5000.0,0.00023974,2]
[349605475,1737324648105,-5000.0,0.00023974,2]
[349605477,1737324648114,-5000.0,0.00023974,2]
[349605479,1737324648123,-162.0,0.00023992,2]
[349605481,1737324648132,-162.0,0.00023992,2]
[349605483,1737324648141,-162.0,0.00023992,2]
[349605485,1737324648151,-162.0,0.00023992,2]
[349605487,1737324648160,-162.0,0.00023992,2]
[349605489,1737324648171,-162.0,0.00023992,2]
[349605491,1737324648181,-162.0,0.00023992,2]
[349605493,1737324648191,-162.0,0.00023992,2]
[349605495,1737324648200,-151.0,0.00024,5]
[349605497,1737324648210,-300.0,0.00024,11]
[349605499,1737324648219,-13198.82512218,0.00024098,2]
[349605501,1737324648228,-854.29718945,0.00024098,2]
[349605503,1737324648237,-2000.0,0.000241,2]
[349605505,1737324648247,-188.0,0.000241,2]
[349605507,1737324648256,-153.07,0.000241,31]
[349605509,1737324648267,-153.07,0.000241,31]
[349605511,1737324648277,-153.07,0.000241,31]
[349605513,1737324648286,-153.07,0.000241,31]
[349605515,1737324648296,-153.07,0.000241,31]
[349605517,1737324648306,-153.07,0.000241,31]
[349605519,1737324648315,-153.07,0.000241,31]
[349605521,1737324648325,-153.07,0.000241,31]
[349605523,1737324648335,-153.07,0.000241,31]
[349605525,1737324648344,-368.34,0.00024109,3]
[349605527,1737324648354,-500.0,0.00024109,3]
[349605529,1737324648364,-151.0,0.00024109,7]
[349605531,1737324648374,-151.0,0.00024109,7]
[349605533,1737324648383,-189.143451,0.00024109,7]
[349605535,1737324648393,-513.839101,0.00024109,7]
[349605537,1737324648403,-513.839101,0.00024109,7]
[349605539,1737324648412,-500.0,0.00024109,2]
[349605541,1737324648426,-4853.11,0.00024109,3]
[349605543,1737324648436,-1993.2,0.00024109,3]
[349605545,1737324648446,-881.91,0.00024109,3]
[349605547,1737324648455,-8689.86,0.00024109,3]
[349605549,1737324648465,-1226.58,0.00024109,3]
[349605551,1737324648476,-3967.21,0.00024109,3]
[349605561,1737324648566,-663.29,0.00024109,3]
[349605563,1737324648576,-500.0,0.00024109,3]
[349605565,1737324648587,-1715.53,0.00024109,3]
[349605567,1737324648597,-1016.52,0.00024109,3]
[349605570,1737324648607,-1163.17,0.00024109,3]
[349605572,1737324648616,-5107.16,0.00024109,3]
[349605574,1737324648626,-2259.45,0.00024109,3]
[349605576,1737324648635,-1278.11,0.00024109,3]
[349605578,1737324648645,-516.79,0.00024109,3]
[349605580,1737324648655,-15061.67,0.00024109,3]
[349605582,1737324648665,-151.0,0.00024109,7]
[349605584,1737324648677,-500.0,0.00024109,3]
[349605585,1737324648687,-500.0,0.00024109,3]
[349605588,1737324648697,-151.0,0.00024109,7]
[349605589,1737324648706,-151.0,0.00024109,7]
[349605591,1737324648716,-504.49,0.00024109,3]
[349605593,1737324648726,-1682.3,0.00024109,3]
[349605595,1737324648736,-247.51766757,0.00024109,3]
[349605598,1737324648747,-151.0,0.00024109,7]
[349605600,1737324648758,-1233.72,0.00024109,3]
[349605601,1737324648768,-151.0,0.00024109,7]
[349605603,1737324648778,-565.39,0.00024109,3]
[349605606,1737324648790,-151.0,0.00024109,7]
[349605608,1737324648799,-347.862552,0.00024109,7]
[349605610,1737324648809,-7438.69753278,0.0002411,7]
[349605612,1737324648818,-1500.0,0.0002412,2]
[349605614,1737324648828,-1000.0,0.00024125,2]
[349605616,1737324648837,-160.0,0.00024146,3]
[349605618,1737324648847,-165.57608759,0.00024146,5]
[349605620,1737324648857,-151.0,0.00024146,7]
[349605622,1737324648867,-151.0,0.00024146,7]
[349605624,1737324648877,-151.0,0.00024146,7]
[349605626,1737324648886,-1000.0,0.00024155,2]
[349605628,1737324648896,-500.0,0.00024173,2]
[349605630,1737324648906,-477.6767053,0.00024173,2]
[349605632,1737324648919,-500.0,0.00024173,2]
[349605634,1737324648930,-500.0,0.00024173,2]
[349605636,1737324648941,-151.0430053,0.00024173,2]
[349605638,1737324648953,-500.0,0.00024173,2]
[349605640,1737324648963,-519.90558887,0.00024173,2]
[349605642,1737324648973,-501.36165219,0.00024173,2]
[349605644,1737324648983,-328.82333774,0.00024173,2]
[349605646,1737324648993,-500.0,0.00024173,2]
[349605648,1737324649003,-162.78116529,0.00024173,2]
[349605650,1737324649012,-329.56003376,0.00024173,2]
[349605652,1737324649021,-500.0,0.00024173,2]
[349605654,1737324649031,-500.0,0.00024173,2]
[349605656,1737324649041,-500.0,0.00024173,2]
[349605658,1737324649050,-962.54921539,0.0002418,7]
[349605660,1737324649060,-239.6621048,0.00024191,2]
[349605662,1737324649070,-30800.08209915,0.00024198,5]
[349605663,1737324649083,-7712.492825,0.00024198,5]
[349605664,1737324649118,-1157.29117748,0.00023107,3]
[349605665,1737324649129,-15262.62888653,0.00024198,5]
[349605666,1737324649140,-6022.45817942,0.00024198,5]
[349605667,1737324649150,-17134.40529727,0.00024198,61]
[349606419,1737325224706,161.778409,0.00013973,2]
[349606464,1737325586679,655.68050384,0.000189,2]
[349606480,1737325637681,220.45,0.0002,2]
[349606495,1737325718477,597.981,0.00019888,7]
[349606600,1737325833054,-332.78390344,0.00020521,2]
[349606602,1737325833064,-653.2706726,0.00020938,2]
[349606604,1737325833074,-172.64779363,0.00021817,2]
[349606606,1737325833083,-175.17562904,0.000219,2]
[349606608,1737325833093,-2040.28325201,0.000219,3]
[349606610,1737325833102,-2974.12289508,0.0002191,2]
[349606613,1737325833114,-1518.72980354,0.0002191,2]
[349606621,1737325833196,-1023.46038068,0.0002191,2]
[349607136,1737325838482,-694.26931492,0.0002191,2]
[349607138,1737325838491,-58.7407476,0.00021915,2]
[349607152,1737325838605,-241.2592524,0.00021915,2]
[349607154,1737325838614,-500.0,0.00021916,7]
[349607156,1737325838623,-158.44,0.00021917,2]
[349607158,1737325838632,-215.94343076,0.00021917,2]
[349607161,1737325838642,-500.0,0.00021917,2]
[349607164,1737325838650,-225.00783345,0.00021917,3]
[349607166,1737325838660,-285.67916655,0.00021917,3]
[349607168,1737325838670,-500.0,0.00021917,3]
[349607170,1737325838679,-500.0,0.00021917,3]
[349607172,1737325838689,-500.0,0.00021917,3]
[349607174,1737325838698,-500.0,0.00021917,2]
[349607176,1737325838707,-172.697,0.00021917,2]
[349607178,1737325838716,-500.0,0.00021917,3]
[349607180,1737325838724,-500.0,0.00021917,3]
[349607182,1737325838734,-315.20678124,0.00021917,2]
[349607183,1737325838745,-184.79321876,0.00021917,2]
[349607185,1737325838755,-500.0,0.00021917,3]
[349607187,1737325838764,-425.20678131,0.00021917,3]
[349607189,1737325838775,-74.79321869,0.00021917,3]
[349607191,1737325838785,-500.0,0.00021917,3]
[349607193,1737325838794,-500.0,0.00021917,3]
[349607195,1737325838803,-500.0,0.00021917,3]
[349607197,1737325838812,-500.0,0.00021917,3]
[349607199,1737325838821,-500.0,0.00021917,3]
[349607201,1737325838831,-500.0,0.00021917,3]
[349607203,1737325838840,-500.0,0.00021917,3]
[349607205,1737325838850,-500.0,0.00021917,3]
[349607207,1737325838859,-500.0,0.00021917,3]
[349607209,1737325838868,-500.0,0.00021917,3]
[349607211,1737325838879,-500.0,0.00021917,3]
[349607213,1737325838888,-357.75998588,0.00021917,3]
[349607466,1737325841777,-142.24001412,0.00021917,3]
[349607468,1737325841786,-500.0,0.00021917,3]
[349607470,1737325841795,-500.0,0.00021917,3]
[349607472,1737325841805,-500.0,0.00021917,3]
[349607474,1737325841815,-500.0,0.00021917,3]
[349607476,1737325841823,-500.0,0.00021917,3]
[349607478,1737325841832,-500.0,0.00021917,3]
[349607480,1737325841842,-500.0,0.00021917,3]
[349607482,1737325841851,-500.0,0.00021917,3]
[349607484,1737325841860,-500.0,0.00021917,3]
[349607486,1737325841870,-500.0,0.00021917,3]
[349607489,1737325841879,-500.0,0.00021917,3]
[349607491,1737325841889,-148.51296281,0.00021917,3]
[349607619,1737325843510,-351.48703719,0.00021917,3]
[349607621,1737325843519,-500.0,0.00021917,3]
[349607623,1737325843534,-502.02388033,0.00021917,2]
[349607625,1737325843543,-8.30798249,0.00021917,3]
[349607627,1737325843555,-362.87201751,0.00021917,3]
[349607629,1737325843564,-500.0,0.00021917,3]
[349607631,1737325843574,-83.76251893,0.00021917,2]
[349607643,1737325843660,-416.23748107,0.00021917,2]
[349607646,1737325843670,-500.0,0.00021917,3]
[349607648,1737325843679,-500.0,0.00021917,3]
[349607650,1737325843688,-500.0,0.00021917,3]
[349607652,1737325843698,-500.0,0.00021917,3]
[349607654,1737325843707,-500.0,0.00021917,3]
[349607656,1737325843716,-500.0,0.00021917,3]